[Event "Titled Tuesday Blitz April 19 Early 2022"]
[White "Cherniaiev, Tykhon"]
[Black "Dreev, Aleksey"]
[WhiteFideId "14182360"]
[BlackFideId "4100107"]
[WhiteElo "2289"]
[BlackElo "2625"]
[Result "1/2-1/2"]
[Round "03"]
[TimeControl "180+1"]
[Date "2022.04.19"]
[WhiteClock "0:00:20"]
[BlackClock "0:00:05"]

1. Nf3 {[%clk 0:03:00]}  d5 {[%clk 0:02:47]} 2. c4 {[%clk 0:03:00]}  c6 {[%clk 0:02:46]} 3. e3 {[%clk 0:02:57]}  Nf6 {[%clk 0:02:46]} 4. d4 {[%clk 0:02:57]}  Bg4 {[%clk 0:02:45]} 5. Bd3 {[%clk 0:02:57]}  e6 {[%clk 0:02:45]} 6. Nbd2 {[%clk 0:02:57]}  Nbd7 {[%clk 0:02:45]} 7. O-O {[%clk 0:02:57]}  Bd6 {[%clk 0:02:45]} 8. e4 {[%clk 0:02:58]}  dxe4 {[%clk 0:02:44]} 9. Nxe4 {[%clk 0:02:58]}  Nxe4 {[%clk 0:02:43]} 10. Bxe4 {[%clk 0:02:59]}  Nf6 {[%clk 0:02:42]} 11. Bc2 {[%clk 0:02:59]}  Qc7 {[%clk 0:02:40]} 12. h3 {[%clk 0:02:59]}  Bh5 {[%clk 0:02:41]} 13. Qe2 {[%clk 0:02:59]}  Bf4 {[%clk 0:02:38]} 14. Be3 {[%clk 0:02:57]}  O-O {[%clk 0:02:36]} 15. Rad1 {[%clk 0:02:57]}  Rad8 {[%clk 0:02:36]} 16. Rfe1 {[%clk 0:02:55]}  Rfe8 {[%clk 0:02:27]} 17. a3 {[%clk 0:02:53]}  a6 {[%clk 0:02:27]} 18. Rd2 {[%clk 0:02:43]}  Re7 {[%clk 0:02:12]} 19. Bxf4 {[%clk 0:01:57]}  Qxf4 {[%clk 0:02:12]} 20. Qe5 {[%clk 0:01:57]}  Qxe5 {[%clk 0:02:11]} 21. dxe5 {[%clk 0:01:56]}  Rxd2 {[%clk 0:01:39]} 22. Nxd2 {[%clk 0:01:57]}  Nd7 {[%clk 0:01:28]} 23. f4 {[%clk 0:01:54]}  Nb6 {[%clk 0:01:19]} 24. c5 {[%clk 0:01:22]}  Nd5 {[%clk 0:01:01]} 25. g4 {[%clk 0:01:21]}  Bg6 {[%clk 0:01:00]} 26. f5 {[%clk 0:01:21]}  exf5 {[%clk 0:00:58]} 27. gxf5 {[%clk 0:01:21]}  Bh5 {[%clk 0:00:58]} 28. Nc4 {[%clk 0:01:21]}  g6 {[%clk 0:00:24]} 29. Nd6 {[%clk 0:01:14]}  gxf5 {[%clk 0:00:24]} 30. Nxf5 {[%clk 0:01:14]}  Re6 {[%clk 0:00:23]} 31. Nd6 {[%clk 0:01:12]}  Bg6 {[%clk 0:00:23]} 32. Bb3 {[%clk 0:01:09]}  Re7 {[%clk 0:00:24]} 33. Bxd5 {[%clk 0:01:00]}  cxd5 {[%clk 0:00:25]} 34. Kf2 {[%clk 0:01:00]}  d4 {[%clk 0:00:25]} 35. b4 {[%clk 0:00:56]}  d3 {[%clk 0:00:25]} 36. a4 {[%clk 0:00:53]}  d2 {[%clk 0:00:17]} 37. Rd1 {[%clk 0:00:52]}  Bc2 {[%clk 0:00:18]} 38. Rxd2 {[%clk 0:00:52]}  Bxa4 {[%clk 0:00:18]} 39. Re2 {[%clk 0:00:36]}  Bc6 {[%clk 0:00:16]} 40. Kg3 {[%clk 0:00:35]}  Re6 {[%clk 0:00:14]} 41. Kf4 {[%clk 0:00:35]}  Rh6 {[%clk 0:00:14]} 42. Kg3 {[%clk 0:00:27]}  Rg6+ {[%clk 0:00:14]} 43. Kf4 {[%clk 0:00:26]}  Rg1 {[%clk 0:00:15]} 44. Nf5 {[%clk 0:00:22]}  Kf8 {[%clk 0:00:09]} 45. Rd2 {[%clk 0:00:20]}  Ke8 {[%clk 0:00:09]} 46. Nd6+ {[%clk 0:00:20]}  Ke7 {[%clk 0:00:08]} 47. Nf5+ {[%clk 0:00:20]}  Ke8 {[%clk 0:00:08]} 48. Nd6+ {[%clk 0:00:20]}  Kf8 {[%clk 0:00:06]} 49. Nf5 {[%clk 0:00:20]}  Ke8 {[%clk 0:00:05]} 1/2-1/2


[Site "https://www.chess.com"]

[Event "Titled Tuesday Blitz April 19 Early 2022"]
[White "Chernobay, Artem"]
[Black "Buscar, Michael"]
[WhiteFideId "4167406"]
[BlackFideId "2603616"]
[WhiteElo "2473"]
[BlackElo "2010"]
[Result "1-0"]
[Round "03"]
[TimeControl "180+1"]
[Date "2022.04.19"]
[WhiteClock "0:00:21"]
[BlackClock "0:00:09"]

1. e4 {[%clk 0:02:48]}  c5 {[%clk 0:02:58]} 2. Nf3 {[%clk 0:02:48]}  Nc6 {[%clk 0:02:57]} 3. d4 {[%clk 0:02:48]}  cxd4 {[%clk 0:02:57]} 4. Nxd4 {[%clk 0:02:49]}  Nf6 {[%clk 0:02:58]} 5. Nc3 {[%clk 0:02:49]}  e5 {[%clk 0:02:58]} 6. Ndb5 {[%clk 0:02:49]}  h6 {[%clk 0:02:59]} 7. Nd6+ {[%clk 0:02:49]}  Bxd6 {[%clk 0:02:58]} 8. Qxd6 {[%clk 0:02:49]}  Qe7 {[%clk 0:02:59]} 9. Qd1 {[%clk 0:02:48]}  O-O {[%clk 0:02:59]} 10. Bd3 {[%clk 0:02:39]}  Rd8 {[%clk 0:02:58]} 11. O-O {[%clk 0:02:39]}  d5 {[%clk 0:02:58]} 12. Nxd5 {[%clk 0:02:36]}  Nxd5 {[%clk 0:02:57]} 13. exd5 {[%clk 0:02:37]}  Nb4 {[%clk 0:02:54]} 14. c4 {[%clk 0:02:33]}  e4 {[%clk 0:02:51]} 15. Be2 {[%clk 0:02:32]}  Bf5 {[%clk 0:02:44]} 16. Be3 {[%clk 0:02:23]}  Nd3 {[%clk 0:02:41]} 17. Qd2 {[%clk 0:02:15]}  Qf6 {[%clk 0:02:29]} 18. b3 {[%clk 0:02:04]}  Rac8 {[%clk 0:02:14]} 19. f3 {[%clk 0:01:42]}  Qg6 {[%clk 0:02:13]} 20. fxe4 {[%clk 0:01:41]}  Bxe4 {[%clk 0:02:10]} 21. Bf3 {[%clk 0:01:41]}  b5 {[%clk 0:01:53]} 22. Rad1 {[%clk 0:01:22]}  bxc4 {[%clk 0:01:41]} 23. bxc4 {[%clk 0:01:16]}  Ne5 {[%clk 0:01:41]} 24. Bxe4 {[%clk 0:01:12]}  Qxe4 {[%clk 0:01:41]} 25. Rf4 {[%clk 0:01:11]}  Qg6 {[%clk 0:01:29]} 26. c5 {[%clk 0:01:08]}  Rd7 {[%clk 0:01:13]} 27. d6 {[%clk 0:01:05]}  Qe6 {[%clk 0:01:06]} 28. Qd5 {[%clk 0:01:00]}  Qxd5 {[%clk 0:00:48]} 29. Rxd5 {[%clk 0:00:59]}  Nc6 {[%clk 0:00:49]} 30. Rd3 {[%clk 0:00:51]}  Re8 {[%clk 0:00:41]} 31. Kf2 {[%clk 0:00:48]}  f6 {[%clk 0:00:40]} 32. Rb3 {[%clk 0:00:47]}  Kf7 {[%clk 0:00:38]} 33. Ra4 {[%clk 0:00:45]}  Ne5 {[%clk 0:00:29]} 34. h3 {[%clk 0:00:43]}  Rc8 {[%clk 0:00:27]} 35. Rab4 {[%clk 0:00:40]}  Ke6 {[%clk 0:00:20]} 36. Ke2 {[%clk 0:00:39]}  Rc6 {[%clk 0:00:13]} 37. Rb8 {[%clk 0:00:36]}  Ra6 {[%clk 0:00:12]} 38. a3 {[%clk 0:00:35]}  Nc6 {[%clk 0:00:10]} 39. Re8+ {[%clk 0:00:30]}  Kf7 {[%clk 0:00:09]} 40. Re4 {[%clk 0:00:28]}  Ne5 {[%clk 0:00:09]} 41. Bf4 {[%clk 0:00:25]}  Nc6 {[%clk 0:00:09]} 42. g4 {[%clk 0:00:23]}  Ra5 {[%clk 0:00:09]} 43. Be3 {[%clk 0:00:23]}  Ne5 {[%clk 0:00:09]} 44. Reb4 {[%clk 0:00:23]}  Nc6 {[%clk 0:00:08]} 45. Rb7 {[%clk 0:00:23]}  Ke6 {[%clk 0:00:09]} 46. Rxd7 {[%clk 0:00:23]}  Kxd7 {[%clk 0:00:08]} 47. Rb7+ {[%clk 0:00:24]}  Ke6 {[%clk 0:00:09]} 48. Rc7 {[%clk 0:00:23]}  Ne5 {[%clk 0:00:09]} 49. Re7+ {[%clk 0:00:22]}  Kd5 {[%clk 0:00:09]} 50. Rxe5+ {[%clk 0:00:22]}  Kxe5 {[%clk 0:00:08]} 51. d7 {[%clk 0:00:22]}  Rxa3 {[%clk 0:00:08]} 52. d8=Q {[%clk 0:00:22]}  Ra2+ {[%clk 0:00:09]} 53. Kf3 {[%clk 0:00:22]}  Ra6 {[%clk 0:00:09]} 54. Bf4+ {[%clk 0:00:21]}  Ke6 {[%clk 0:00:09]} 55. Qc8+ {[%clk 0:00:21]} 1-0


[Site "https://www.chess.com"]

[Event "Titled Tuesday Blitz April 19 Early 2022"]
[White "Chernomordik, Pavel"]
[Black "Krylov, Ivan"]
[WhiteFideId "2804530"]
[BlackFideId "24128066"]
[WhiteElo "2220"]
[BlackElo "2258"]
[Result "1-0"]
[Round "03"]
[TimeControl "180+1"]
[Date "2022.04.19"]
[WhiteClock "0:00:06"]
[BlackClock "0:00:02"]

1. e4 {[%clk 0:03:00]}  c6 {[%clk 0:02:59]} 2. Nc3 {[%clk 0:02:59]}  d5 {[%clk 0:02:59]} 3. Nf3 {[%clk 0:02:58]}  Bg4 {[%clk 0:03:00]} 4. h3 {[%clk 0:02:57]}  Bxf3 {[%clk 0:03:00]} 5. Qxf3 {[%clk 0:02:56]}  e6 {[%clk 0:03:00]} 6. Qg3 {[%clk 0:02:55]}  Nf6 {[%clk 0:02:56]} 7. e5 {[%clk 0:02:52]}  Nfd7 {[%clk 0:02:47]} 8. f4 {[%clk 0:02:50]}  c5 {[%clk 0:02:41]} 9. Be2 {[%clk 0:02:33]}  a6 {[%clk 0:02:37]} 10. O-O {[%clk 0:02:32]}  Nc6 {[%clk 0:02:36]} 11. d3 {[%clk 0:02:25]}  b5 {[%clk 0:02:27]} 12. f5 {[%clk 0:02:14]}  b4 {[%clk 0:01:45]} 13. Nb1 {[%clk 0:02:11]}  exf5 {[%clk 0:01:38]} 14. Rxf5 {[%clk 0:02:02]}  Qe7 {[%clk 0:01:33]} 15. Bg5 {[%clk 0:01:45]}  Qe6 {[%clk 0:01:31]} 16. Bg4 {[%clk 0:01:45]}  Qg6 {[%clk 0:01:28]} 17. Rf1 {[%clk 0:01:15]}  Ndxe5 {[%clk 0:01:15]} 18. Re1 {[%clk 0:01:09]}  Bd6 {[%clk 0:01:08]} 19. Bf4 {[%clk 0:01:03]}  O-O {[%clk 0:01:02]} 20. Nd2 {[%clk 0:01:02]}  Rae8 {[%clk 0:00:46]} 21. Nf3 {[%clk 0:00:45]}  Nxf3+ {[%clk 0:00:44]} 22. Qxf3 {[%clk 0:00:42]}  Nd4 {[%clk 0:00:43]} 23. Qf2 {[%clk 0:00:35]}  Bxf4 {[%clk 0:00:41]} 24. Qxf4 {[%clk 0:00:34]}  Nxc2 {[%clk 0:00:36]} 25. Rxe8 {[%clk 0:00:33]}  Rxe8 {[%clk 0:00:36]} 26. Rf1 {[%clk 0:00:26]}  h5 {[%clk 0:00:25]} 27. Bd7 {[%clk 0:00:21]}  Rf8 {[%clk 0:00:17]} 28. Bf5 {[%clk 0:00:20]}  Qf6 {[%clk 0:00:14]} 29. Qd2 {[%clk 0:00:18]}  Qxb2 {[%clk 0:00:09]} 30. Qg5 {[%clk 0:00:15]}  g6 {[%clk 0:00:04]} 31. Bxg6 {[%clk 0:00:07]}  fxg6 {[%clk 0:00:03]} 32. Qxg6+ {[%clk 0:00:07]}  Qg7 {[%clk 0:00:03]} 33. Qe6+ {[%clk 0:00:07]}  Rf7 {[%clk 0:00:02]} 34. Qxd5 {[%clk 0:00:06]} 1-0


[Site "https://www.chess.com"]

[Event "Titled Tuesday Blitz April 19 Early 2022"]
[White "Dahlgren, James Allen"]
[Black "Rottenwohrer Suarez, Juan"]
[WhiteFideId "22256873"]
[BlackFideId "32068182"]
[WhiteElo "2096"]
[BlackElo "2158"]
[Result "0-1"]
[Round "03"]
[TimeControl "180+1"]
[Date "2022.04.19"]
[WhiteClock "0:02:01"]
[BlackClock "0:01:45"]

1. d3 {[%clk 0:03:00]}  Nf6 {[%clk 0:02:59]} 2. f4 {[%clk 0:03:01]}  g6 {[%clk 0:02:58]} 3. Nf3 {[%clk 0:03:02]}  Bg7 {[%clk 0:02:58]} 4. g3 {[%clk 0:03:03]}  O-O {[%clk 0:02:57]} 5. Bg2 {[%clk 0:03:04]}  Nc6 {[%clk 0:02:58]} 6. O-O {[%clk 0:03:04]}  d6 {[%clk 0:02:58]} 7. c4 {[%clk 0:03:05]}  e5 {[%clk 0:02:57]} 8. Nc3 {[%clk 0:03:06]}  exf4 {[%clk 0:02:41]} 9. Bxf4 {[%clk 0:03:07]}  h6 {[%clk 0:02:41]} 10. e4 {[%clk 0:03:07]}  Bg4 {[%clk 0:02:37]} 11. Qd2 {[%clk 0:03:07]}  Kh7 {[%clk 0:02:34]} 12. h3 {[%clk 0:02:59]}  Bxf3 {[%clk 0:02:34]} 13. Rxf3 {[%clk 0:02:59]}  Nd4 {[%clk 0:02:33]} 14. Rf2 {[%clk 0:03:00]}  Nh5 {[%clk 0:02:32]} 15. Kh2 {[%clk 0:02:53]}  Nxf4 {[%clk 0:02:26]} 16. gxf4 {[%clk 0:02:54]}  c6 {[%clk 0:02:16]} 17. Re1 {[%clk 0:02:45]}  Qh4 {[%clk 0:02:15]} 18. e5 {[%clk 0:02:30]}  dxe5 {[%clk 0:02:10]} 19. fxe5 {[%clk 0:02:31]}  Rae8 {[%clk 0:02:06]} 20. Re4 {[%clk 0:02:25]}  Bxe5+ {[%clk 0:02:02]} 21. Kg1 {[%clk 0:02:18]}  Qg3 {[%clk 0:02:01]} 22. Ne2 {[%clk 0:02:12]}  Nxe2+ {[%clk 0:01:53]} 23. Rfxe2 {[%clk 0:02:13]}  f5 {[%clk 0:01:45]} 24. R4e3 {[%clk 0:02:01]}  Bd4 {[%clk 0:01:45]} 0-1


[Site "https://www.chess.com"]

[Event "Titled Tuesday Blitz April 19 Early 2022"]
[White "Wagner, Dinara"]
[Black "Lou, Yiping"]
[WhiteFideId "24157570"]
[BlackFideId "8603928"]
[WhiteElo "2216"]
[BlackElo "2412"]
[Result "0-1"]
[Round "03"]
[TimeControl "180+1"]
[Date "2022.04.19"]
[WhiteClock "0:00:20"]
[BlackClock "0:00:36"]

1. d4 {[%clk 0:03:00]}  d5 {[%clk 0:02:58]} 2. c4 {[%clk 0:03:00]}  c6 {[%clk 0:02:58]} 3. Nf3 {[%clk 0:03:00]}  Nf6 {[%clk 0:02:57]} 4. g3 {[%clk 0:03:01]}  dxc4 {[%clk 0:02:51]} 5. Bg2 {[%clk 0:03:00]}  Bf5 {[%clk 0:02:38]} 6. O-O {[%clk 0:02:53]}  Nbd7 {[%clk 0:02:36]} 7. a4 {[%clk 0:02:49]}  e6 {[%clk 0:02:32]} 8. Na3 {[%clk 0:02:40]}  Bxa3 {[%clk 0:02:17]} 9. Rxa3 {[%clk 0:02:41]}  Be4 {[%clk 0:02:10]} 10. Bd2 {[%clk 0:02:29]}  O-O {[%clk 0:02:08]} 11. Bh3 {[%clk 0:02:03]}  Bxf3 {[%clk 0:01:59]} 12. Rxf3 {[%clk 0:02:02]}  b5 {[%clk 0:01:55]} 13. Bg2 {[%clk 0:02:00]}  Rc8 {[%clk 0:01:48]} 14. Ra3 {[%clk 0:01:58]}  a6 {[%clk 0:01:46]} 15. axb5 {[%clk 0:01:26]}  axb5 {[%clk 0:01:46]} 16. Ra6 {[%clk 0:01:25]}  Nb8 {[%clk 0:01:42]} 17. Ra1 {[%clk 0:01:19]}  Qxd4 {[%clk 0:01:41]} 18. Qc2 {[%clk 0:01:15]}  Qc5 {[%clk 0:01:25]} 19. b3 {[%clk 0:01:11]}  Rfd8 {[%clk 0:01:19]} 20. Ba5 {[%clk 0:01:03]}  Rd7 {[%clk 0:01:12]} 21. Rfc1 {[%clk 0:01:04]}  h6 {[%clk 0:01:00]} 22. bxc4 {[%clk 0:01:04]}  bxc4 {[%clk 0:01:00]} 23. Qxc4 {[%clk 0:01:03]}  Rd1+ {[%clk 0:00:57]} 24. Bf1 {[%clk 0:01:01]}  Qxc4 {[%clk 0:00:56]} 25. Rxd1 {[%clk 0:00:46]}  Nbd7 {[%clk 0:00:52]} 26. Rac1 {[%clk 0:00:44]}  Qa6 {[%clk 0:00:51]} 27. Bc3 {[%clk 0:00:44]}  c5 {[%clk 0:00:48]} 28. e3 {[%clk 0:00:44]}  c4 {[%clk 0:00:48]} 29. Bd4 {[%clk 0:00:44]}  e5 {[%clk 0:00:45]} 30. Bb2 {[%clk 0:00:43]}  Qe6 {[%clk 0:00:44]} 31. Rc2 {[%clk 0:00:40]}  Nb6 {[%clk 0:00:42]} 32. Rdc1 {[%clk 0:00:37]}  Ne4 {[%clk 0:00:42]} 33. Ba3 {[%clk 0:00:36]}  c3 {[%clk 0:00:39]} 34. f3 {[%clk 0:00:36]}  Nd2 {[%clk 0:00:38]} 35. Be2 {[%clk 0:00:24]}  Nd5 {[%clk 0:00:38]} 36. Kf2 {[%clk 0:00:23]}  Qb6 {[%clk 0:00:38]} 37. Rxd2 {[%clk 0:00:20]}  Qxe3+ {[%clk 0:00:36]} 0-1


[Site "https://www.chess.com"]

[Event "Titled Tuesday Blitz April 19 Early 2022"]
[White "Ezat, Mohamed"]
[Black "Mika, Tomasz"]
[WhiteFideId "10600906"]
[BlackFideId "1132970"]
[WhiteElo "2386"]
[BlackElo "2116"]
[Result "1-0"]
[Round "03"]
[TimeControl "180+1"]
[Date "2022.04.19"]
[WhiteClock "0:00:19"]
[BlackClock "0:00:23"]

1. d4 {[%clk 0:02:58]}  d5 {[%clk 0:02:59]} 2. c4 {[%clk 0:02:58]}  e6 {[%clk 0:02:59]} 3. Nc3 {[%clk 0:02:58]}  c5 {[%clk 0:02:59]} 4. cxd5 {[%clk 0:02:58]}  exd5 {[%clk 0:02:59]} 5. Nf3 {[%clk 0:02:59]}  Nc6 {[%clk 0:02:58]} 6. g3 {[%clk 0:02:58]}  Nf6 {[%clk 0:02:58]} 7. Bg2 {[%clk 0:02:59]}  Be7 {[%clk 0:02:58]} 8. O-O {[%clk 0:02:59]}  O-O {[%clk 0:02:58]} 9. Bg5 {[%clk 0:02:58]}  c4 {[%clk 0:02:57]} 10. Ne5 {[%clk 0:02:58]}  Be6 {[%clk 0:02:56]} 11. b3 {[%clk 0:02:53]}  Qa5 {[%clk 0:02:51]} 12. Bd2 {[%clk 0:02:49]}  Bb4 {[%clk 0:02:45]} 13. Rc1 {[%clk 0:02:45]}  Nxd4 {[%clk 0:02:34]} 14. a3 {[%clk 0:02:35]}  Bxa3 {[%clk 0:02:34]} 15. Nxd5 {[%clk 0:02:27]}  Qd8 {[%clk 0:02:28]} 16. Nxf6+ {[%clk 0:02:08]}  Qxf6 {[%clk 0:02:27]} 17. Bc3 {[%clk 0:01:48]}  Qxe5 {[%clk 0:01:49]} 18. Bxd4 {[%clk 0:01:39]}  Qd6 {[%clk 0:01:49]} 19. Rc2 {[%clk 0:01:08]}  cxb3 {[%clk 0:01:41]} 20. Rd2 {[%clk 0:01:09]}  Rfd8 {[%clk 0:01:23]} 21. Bxb7 {[%clk 0:00:55]}  Rab8 {[%clk 0:01:18]} 22. Rd3 {[%clk 0:00:34]}  Qc7 {[%clk 0:00:36]} 23. Be4 {[%clk 0:00:23]}  Qc2 {[%clk 0:00:34]} 24. Qa1 {[%clk 0:00:20]}  Bb2 {[%clk 0:00:27]} 25. Bxb2 {[%clk 0:00:18]}  f5 {[%clk 0:00:23]} 26. Rxd8+ {[%clk 0:00:18]}  Rxd8 {[%clk 0:00:23]} 27. Bxc2 {[%clk 0:00:19]} 1-0


[Site "https://www.chess.com"]

[Event "Titled Tuesday Blitz April 19 Early 2022"]
[White "Fedoseev, Vladimir"]
[Black "Molina, Roberto Junio Brito"]
[WhiteFideId "24130737"]
[BlackFideId "2109450"]
[WhiteElo "2726"]
[BlackElo "2432"]
[Result "1-0"]
[Round "03"]
[TimeControl "180+1"]
[Date "2022.04.19"]
[WhiteClock "0:01:32"]
[BlackClock "0:01:18"]

1. e4 {[%clk 0:03:00]}  c6 {[%clk 0:02:59]} 2. d4 {[%clk 0:03:00]}  d5 {[%clk 0:03:00]} 3. exd5 {[%clk 0:03:00]}  cxd5 {[%clk 0:03:00]} 4. Bd3 {[%clk 0:03:00]}  Nc6 {[%clk 0:03:00]} 5. c3 {[%clk 0:03:00]}  g6 {[%clk 0:03:01]} 6. Bf4 {[%clk 0:02:56]}  Bf5 {[%clk 0:03:01]} 7. Bxf5 {[%clk 0:02:54]}  gxf5 {[%clk 0:03:02]} 8. h3 {[%clk 0:02:49]}  e6 {[%clk 0:03:02]} 9. g4 {[%clk 0:02:48]}  fxg4 {[%clk 0:02:55]} 10. hxg4 {[%clk 0:02:49]}  Bd6 {[%clk 0:02:55]} 11. Ne2 {[%clk 0:02:40]}  Nge7 {[%clk 0:02:53]} 12. Nd2 {[%clk 0:02:33]}  Qc7 {[%clk 0:02:52]} 13. Bxd6 {[%clk 0:02:30]}  Qxd6 {[%clk 0:02:53]} 14. Nf3 {[%clk 0:02:29]}  f6 {[%clk 0:02:26]} 15. Qd3 {[%clk 0:02:29]}  O-O-O {[%clk 0:02:18]} 16. O-O-O {[%clk 0:02:18]}  h6 {[%clk 0:02:14]} 17. Qe3 {[%clk 0:02:16]}  Rdg8 {[%clk 0:02:08]} 18. Rdg1 {[%clk 0:02:11]}  e5 {[%clk 0:02:04]} 19. Rxh6 {[%clk 0:02:07]}  e4 {[%clk 0:02:00]} 20. Nd2 {[%clk 0:01:52]}  Rxh6 {[%clk 0:01:54]} 21. Qxh6 {[%clk 0:01:50]}  Qe6 {[%clk 0:01:55]} 22. g5 {[%clk 0:01:43]}  Nf5 {[%clk 0:01:47]} 23. Qxf6 {[%clk 0:01:39]}  Qxf6 {[%clk 0:01:45]} 24. gxf6 {[%clk 0:01:39]}  Rxg1+ {[%clk 0:01:45]} 25. Nxg1 {[%clk 0:01:40]}  Kd7 {[%clk 0:01:46]} 26. Nh3 {[%clk 0:01:37]}  e3 {[%clk 0:01:38]} 27. fxe3 {[%clk 0:01:36]}  Nxe3 {[%clk 0:01:39]} 28. Nf4 {[%clk 0:01:35]}  Nd8 {[%clk 0:01:36]} 29. Nf3 {[%clk 0:01:34]}  Kd6 {[%clk 0:01:18]} 30. Ne5 {[%clk 0:01:32]} 1-0


[Site "https://www.chess.com"]

[Event "Titled Tuesday Blitz April 19 Early 2022"]
[White "Fernandez Siles, Luis"]
[Black "Derjabin, Ilja"]
[WhiteFideId "2209420"]
[BlackFideId "14104768"]
[WhiteElo "2212"]
[BlackElo "2341"]
[Result "1-0"]
[Round "03"]
[TimeControl "180+1"]
[Date "2022.04.19"]
[WhiteClock "0:00:20"]
[BlackClock "0:00:07"]

1. e4 {[%clk 0:03:00]}  c5 {[%clk 0:02:59]} 2. Nc3 {[%clk 0:02:56]}  e6 {[%clk 0:02:57]} 3. g3 {[%clk 0:02:53]}  d5 {[%clk 0:02:54]} 4. exd5 {[%clk 0:02:53]}  exd5 {[%clk 0:02:55]} 5. d3 {[%clk 0:02:51]}  d4 {[%clk 0:02:54]} 6. Ne4 {[%clk 0:02:51]}  Nc6 {[%clk 0:02:46]} 7. Bg2 {[%clk 0:02:51]}  h6 {[%clk 0:02:41]} 8. Ne2 {[%clk 0:02:49]}  Nf6 {[%clk 0:02:31]} 9. Nxf6+ {[%clk 0:02:40]}  Qxf6 {[%clk 0:02:30]} 10. Nf4 {[%clk 0:02:38]}  Bd6 {[%clk 0:02:18]} 11. O-O {[%clk 0:02:37]}  O-O {[%clk 0:02:17]} 12. Nd5 {[%clk 0:02:36]}  Qd8 {[%clk 0:02:15]} 13. c4 {[%clk 0:02:35]}  dxc3 {[%clk 0:02:14]} 14. bxc3 {[%clk 0:02:35]}  Bf5 {[%clk 0:02:11]} 15. Re1 {[%clk 0:02:13]}  Ne5 {[%clk 0:02:04]} 16. d4 {[%clk 0:01:33]}  cxd4 {[%clk 0:01:55]} 17. cxd4 {[%clk 0:01:25]}  Nd3 {[%clk 0:01:54]} 18. Re3 {[%clk 0:01:23]}  Nxc1 {[%clk 0:01:53]} 19. Rxc1 {[%clk 0:01:24]}  Be6 {[%clk 0:01:46]} 20. Qh5 {[%clk 0:01:17]}  Rc8 {[%clk 0:01:33]} 21. Rce1 {[%clk 0:01:16]}  b6 {[%clk 0:01:25]} 22. h4 {[%clk 0:01:03]}  Rc2 {[%clk 0:01:20]} 23. Rxe6 {[%clk 0:00:50]}  fxe6 {[%clk 0:01:17]} 24. Rxe6 {[%clk 0:00:48]}  Rcxf2 {[%clk 0:00:57]} 25. Be4 {[%clk 0:00:39]}  Bxg3 {[%clk 0:00:39]} 26. Ne7+ {[%clk 0:00:26]}  Qxe7 {[%clk 0:00:35]} 27. Rxe7 {[%clk 0:00:24]}  Rf1+ {[%clk 0:00:23]} 28. Kg2 {[%clk 0:00:24]}  Be5 {[%clk 0:00:08]} 29. dxe5 {[%clk 0:00:21]}  R1f2+ {[%clk 0:00:07]} 30. Kg3 {[%clk 0:00:21]}  Rf1 {[%clk 0:00:07]} 31. Rxg7+ {[%clk 0:00:20]} 1-0


[Site "https://www.chess.com"]

[Event "Titled Tuesday Blitz April 19 Early 2022"]
[White "Fonseca Manrique, Enrique"]
[Black "De Souza, Cristiano Gomes"]
[WhiteFideId "5114330"]
[BlackFideId "2151758"]
[WhiteElo "2556"]
[BlackElo "2068"]
[Result "1-0"]
[Round "03"]
[TimeControl "180+1"]
[Date "2022.04.19"]
[WhiteClock "0:00:35"]
[BlackClock "0:01:21"]

1. e4 {[%clk 0:03:00]}  c5 {[%clk 0:02:59]} 2. Nf3 {[%clk 0:03:01]}  d6 {[%clk 0:02:59]} 3. d4 {[%clk 0:03:00]}  cxd4 {[%clk 0:02:59]} 4. Nxd4 {[%clk 0:03:01]}  Nf6 {[%clk 0:02:59]} 5. Nc3 {[%clk 0:03:02]}  a6 {[%clk 0:02:59]} 6. Bg5 {[%clk 0:03:02]}  e6 {[%clk 0:02:49]} 7. f4 {[%clk 0:03:00]}  Be7 {[%clk 0:02:49]} 8. Qf3 {[%clk 0:03:00]}  h6 {[%clk 0:02:48]} 9. Bh4 {[%clk 0:02:59]}  g5 {[%clk 0:02:48]} 10. fxg5 {[%clk 0:02:37]}  Nfd7 {[%clk 0:02:48]} 11. Bg3 {[%clk 0:02:20]}  Ne5 {[%clk 0:02:39]} 12. Bxe5 {[%clk 0:01:58]}  dxe5 {[%clk 0:02:39]} 13. g6 {[%clk 0:01:49]}  exd4 {[%clk 0:02:33]} 14. Qxf7+ {[%clk 0:01:48]}  Kd7 {[%clk 0:02:33]} 15. O-O-O {[%clk 0:01:46]}  Nc6 {[%clk 0:02:32]} 16. g7 {[%clk 0:01:37]}  Rg8 {[%clk 0:02:31]} 17. Bc4 {[%clk 0:01:27]}  Kc7 {[%clk 0:02:31]} 18. Rhf1 {[%clk 0:01:21]}  Bd7 {[%clk 0:02:22]} 19. Bxe6 {[%clk 0:01:17]}  Bxe6 {[%clk 0:02:19]} 20. Qxe6 {[%clk 0:01:17]}  Qd6 {[%clk 0:02:18]} 21. Nd5+ {[%clk 0:01:17]}  Kb8 {[%clk 0:01:54]} 22. Qxg8+ {[%clk 0:01:17]}  Ka7 {[%clk 0:01:55]} 23. Qf7 {[%clk 0:01:15]}  Ne5 {[%clk 0:01:50]} 24. g8=Q {[%clk 0:01:11]}  Nxf7 {[%clk 0:01:45]} 25. Qxf7 {[%clk 0:01:12]}  Bg5+ {[%clk 0:01:44]} 26. Kb1 {[%clk 0:01:12]}  Rc8 {[%clk 0:01:41]} 27. Qf3 {[%clk 0:00:51]}  Qxh2 {[%clk 0:01:36]} 28. Qb3 {[%clk 0:00:48]}  Qd6 {[%clk 0:01:32]} 29. Rxd4 {[%clk 0:00:44]}  Qe5 {[%clk 0:01:24]} 30. Rf7 {[%clk 0:00:37]}  Rb8 {[%clk 0:01:21]} 31. Rb4 {[%clk 0:00:35]} 1-0


[Site "https://www.chess.com"]